fUST/lending_fUST_20250619
["ID","MTS","AMOUNT","RATE_DAILY","PERIOD"]
[366471769,1750276238014,-500.0,0.00020245,2]
[366471770,1750276238024,-500.0,0.00020245,2]
[366471771,1750276238033,-500.0,0.00020245,2]
[366471772,1750276238042,-500.0,0.00020245,2]
[366471773,1750276238051,-372.9573964,0.00020245,2]
[366471774,1750276238061,-500.0,0.00020245,2]
[366471775,1750276238070,-500.0,0.00020245,2]
[366471776,1750276238080,-500.0,0.00020245,2]
[366471777,1750276238089,-500.0,0.00020245,2]
[366471778,1750276238099,-633.93129682,0.00020245,2]
[366471779,1750276238108,-500.0,0.00020245,2]
[366471780,1750276238118,-500.0,0.00020245,2]
[366471781,1750276238127,-500.0,0.00020245,2]
[366471782,1750276238136,-500.0,0.00020245,2]
[366471783,1750276238146,-500.0,0.00020245,2]
[366471784,1750276238155,-500.0,0.00020245,2]
[366471785,1750276238165,-500.0,0.00020245,2]
[366471786,1750276238175,-500.0,0.00020245,2]
[366471787,1750276238184,-500.0,0.00020245,2]
[366471788,1750276238194,-500.0,0.00020245,2]
[366471789,1750276238203,-500.0,0.00020245,2]
[366471790,1750276238213,-455.15400414,0.00020245,2]
[366471791,1750276238224,-208.62839919,0.00020245,2]
[366471792,1750276238233,-402.30173756,0.00020245,2]
[366471793,1750276238243,-500.0,0.00020245,2]
[366471794,1750276238252,-500.0,0.00020245,2]
[366471795,1750276238261,-500.0,0.00020245,2]
[366471796,1750276238271,-500.0,0.00020245,2]
[366471797,1750276238281,-500.0,0.00020245,2]
[366471798,1750276238290,-500.0,0.00020245,2]
[366471799,1750276238300,-500.0,0.00020245,2]
[366471800,1750276238310,-500.0,0.00020245,2]
[366471801,1750276238319,-500.0,0.00020245,2]
[366471802,1750276238328,-500.0,0.00020245,2]
[366471803,1750276238338,-500.0,0.00020245,2]
[366471804,1750276238347,-500.0,0.00020245,2]
[366471805,1750276238357,-500.0,0.00020245,2]
[366471806,1750276238366,-500.0,0.00020245,2]
[366471807,1750276238377,-500.0,0.00020245,2]
[366471808,1750276238387,-500.0,0.00020245,2]
[366471809,1750276238396,-500.0,0.00020245,2]
[366471810,1750276238406,-500.0,0.00020245,2]
[366471811,1750276238421,-500.0,0.00020245,2]
[366471812,1750276238430,-500.0,0.00020245,2]
[366471813,1750276238439,-415.38938391,0.00020245,2]
[366471814,1750276238449,-151.0,0.00020247,2]
[366471815,1750276238459,-118.46315624,0.00021917,6]
[366471816,1750276238468,-449.30003978,0.00021917,6]
[366471817,1750276238478,-460.0,0.00021917,6]
[366471818,1750276238487,-460.0,0.00021917,6]
[366471819,1750276238497,-405.5087911,0.00021917,6]
[366471820,1750276238506,-460.0,0.00021917,6]
[366471821,1750276238515,-440.0,0.00021917,6]
[366471822,1750276238525,-460.0,0.00021917,6]
[366471823,1750276238534,-390.0,0.00021917,6]
[366471824,1750276238543,-432.2685416,0.00021917,6]
[366471825,1750276238552,-460.0,0.00021917,6]
[366471826,1750276238562,-1716.89,0.00021917,6]
[366471827,1750276238571,-480.7731394,0.00021917,6]
[366471828,1750276238580,-430.94314449,0.00021917,6]
[366471829,1750276238590,-460.0,0.00021917,6]
[366471830,1750276238599,-745.9,0.00021917,6]
[366471831,1750276238609,-440.0,0.00021917,6]
[366471832,1750276238618,-460.0,0.00021917,6]
[366471833,1750276238627,-460.0,0.00021917,6]
[366471834,1750276238637,-500.0,0.00021917,6]
[366471835,1750276238646,-460.0,0.00021917,6]
[366471836,1750276238655,-500.0,0.00021917,6]
[366471837,1750276238664,-429.60495594,0.00021917,6]
[366471838,1750276238673,-500.0,0.00021917,6]
[366471839,1750276238682,-500.0,0.00021917,6]
[366471840,1750276238691,-500.0,0.00021917,6]
[366471841,1750276238907,-500.0,0.00021917,6]
[366471842,1750276238916,-500.0,0.00021917,6]
[366471843,1750276238925,-500.0,0.00021917,6]
[366471844,1750276238935,-500.0,0.00021917,6]
[366471845,1750276238944,-460.0,0.00021917,6]
[366471846,1750276238953,-460.0,0.00021917,6]
[366471847,1750276238962,-460.0,0.00021917,6]
[366471848,1750276238971,-460.0,0.00021917,6]
[366471849,1750276238981,-460.0,0.00021917,6]
[366471850,1750276238990,-460.0,0.00021917,6]
[366471851,1750276238999,-426.2529394,0.00021917,6]
[366471852,1750276239008,-460.0,0.00021917,6]
[366471853,1750276239018,-460.0,0.00021917,6]
[366471854,1750276239027,-460.0,0.00021917,6]
[366471855,1750276239037,-460.0,0.00021917,6]
[366471856,1750276239046,-1572.4,0.00021917,6]
[366471857,1750276239056,-242.06017446,0.00021917,6]
[366471858,1750276239065,-460.0,0.00021917,6]
[366471859,1750276239074,-460.0,0.00021917,6]
[366471860,1750276239083,-440.00621471,0.00021917,6]
[366471861,1750276239093,-460.0,0.00021917,6]
[366471862,1750276239102,-441.94390668,0.00021917,6]
[366471863,1750276239112,-460.0,0.00021917,6]
[366471864,1750276239121,-440.0,0.00021917,6]
[366471865,1750276239130,-574.06,0.00021917,6]
[366471866,1750276239140,-460.0,0.00021917,6]
[366471867,1750276239148,-460.0,0.00021917,6]
[366471868,1750276239158,-440.0,0.00021917,6]
[366471869,1750276239168,-460.0,0.00021917,6]
[366471870,1750276239177,-460.0,0.00021917,6]
[366471871,1750276239186,-511.68,0.00021917,6]
[366471872,1750276239196,-387.58597834,0.00021917,6]
[366471873,1750276239206,-460.0,0.00021917,6]
[366471874,1750276239215,-440.0,0.00021917,6]
[366471875,1750276239224,-460.0,0.00021917,6]
[366471876,1750276239234,-503.3260284,0.00021917,6]
[366471877,1750276239243,-3015.37,0.00021917,6]
[366471878,1750276239253,-460.0,0.00021917,6]
[366471879,1750276239263,-2284.2,0.00021917,6]
[366471880,1750276239272,-443.64799591,0.00021917,6]
[366471881,1750276239281,-460.0,0.00021917,6]
[366471882,1750276239291,-1316.23,0.00021917,6]
[366471883,1750276239300,-460.0,0.00021917,6]
[366471884,1750276239310,-460.0,0.00021917,6]
[366471885,1750276239320,-173.01264835,0.00021917,6]
[366471886,1750276239329,-460.0,0.00021917,6]
[366471887,1750276239338,-460.0,0.00021917,6]
[366471888,1750276239348,-460.0,0.00021917,6]
[366471889,1750276239357,-460.0,0.00021917,6]
[366471890,1750276239367,-563.086631,0.00021917,6]
[366471891,1750276239376,-460.0,0.00021917,6]
[366471892,1750276239387,-500.0,0.00021917,6]
[366471893,1750276239397,-460.0,0.00021917,6]
[366471894,1750276239406,-440.0,0.00021917,6]
[366471895,1750276239420,-460.0,0.00021917,6]
[366471896,1750276239430,-417.23987646,0.00021917,6]
[366471897,1750276239439,-460.0,0.00021917,6]
[366471899,1750276239449,-460.0,0.00021917,6]
[366471900,1750276239459,-460.0,0.00021917,6]
[366471901,1750276239469,-460.0,0.00021917,6]
[366471902,1750276239478,-460.0,0.00021917,6]
[366471903,1750276239489,-406.69462422,0.00021917,6]
[366471905,1750276239498,-460.0,0.00021917,6]
[366471906,1750276239507,-338.41584575,0.00021917,6]
[366471907,1750276239516,-460.0,0.00021917,6]
[366471908,1750276239526,-1203.33,0.00021917,6]
[366471909,1750276239535,-460.0,0.00021917,6]
[366471910,1750276239545,-481.69,0.00021917,6]
[366471911,1750276239554,-342.53114321,0.00021917,6]
[366471912,1750276239563,-460.0,0.00021917,6]
[366471913,1750276239573,-460.0,0.00021917,6]
[366471914,1750276239582,-257.04832856,0.00021917,6]
[366471915,1750276239591,-460.0,0.00021917,6]
[366471916,1750276239600,-460.0,0.00021917,6]
[366471917,1750276239609,-460.0,0.00021917,2]
[366471918,1750276239618,-460.0,0.00021917,6]
[366471919,1750276239628,-459.80013698,0.00021917,6]
[366471920,1750276239639,-460.0,0.00021917,6]
[366471921,1750276239649,-556.00428834,0.00021917,6]
[366471922,1750276239659,-460.0,0.00021917,6]
[366471923,1750276239669,-460.0,0.00021917,6]
[366471924,1750276239678,-460.0,0.00021917,6]
[366471925,1750276239688,-400.0,0.00021917,6]
[366471926,1750276239697,-460.0,0.00021917,6]
[366471927,1750276239706,-460.0,0.00021917,6]
[366471928,1750276239715,-414.73531558,0.00021917,6]
[366471929,1750276239724,-460.0,0.00021917,6]
[366471930,1750276239733,-461.0076523,0.00021917,6]
[366471931,1750276239743,-460.0,0.00021917,6]
[366471932,1750276239752,-460.0,0.00021917,6]
[366471934,1750276239762,-460.0,0.00021917,6]
[366471936,1750276239771,-460.0,0.00021917,6]
[366471938,1750276239780,-460.0,0.00021917,6]
[366471940,1750276239790,-460.0,0.00021917,6]
[366471941,1750276239800,-460.0,0.00021917,6]
[366471942,1750276239809,-460.0,0.00021917,6]
[366471943,1750276239818,-517.37955047,0.00021917,6]
[366471944,1750276239827,-460.0,0.00021917,6]
[366471945,1750276239837,-460.0,0.00021917,6]
[366471946,1750276239846,-460.0,0.00021917,6]
[366471947,1750276239855,-460.0,0.00021917,6]
[366471948,1750276239864,-402.7155122,0.00021917,6]
[366471949,1750276239873,-460.0,0.00021917,6]
[366471950,1750276239884,-546.39,0.00021917,6]
[366471951,1750276239893,-385.12198118,0.00021917,6]
[366471952,1750276239902,-450.0,0.00021917,6]
[366471953,1750276239911,-460.0,0.00021917,6]
[366471954,1750276239920,-840.0,0.00021917,6]
[366471955,1750276239930,-460.0,0.00021917,6]
[366471956,1750276239939,-460.0,0.00021917,6]
[366471957,1750276239949,-460.0,0.00021917,6]
[366471958,1750276239958,-460.0,0.00021917,6]
[366471959,1750276239967,-460.0,0.00021917,6]
[366471960,1750276239978,-460.0,0.00021917,6]
[366471961,1750276239987,-460.0,0.00021917,6]
[366471962,1750276239996,-280.0,0.00021917,6]
[366471963,1750276240006,-460.0,0.00021917,6]
[366471964,1750276240015,-460.0,0.00021917,6]
[366471965,1750276240025,-460.0,0.00021917,6]
[366471966,1750276240034,-460.0,0.00021917,6]
[366471967,1750276240044,-460.0,0.00021917,6]
[366471968,1750276240054,-1043.62,0.00021917,6]
[366471969,1750276240064,-460.0,0.00021917,6]
[366471970,1750276240073,-422.4930032,0.00021917,6]
[366471971,1750276240084,-440.0,0.00021917,6]
[366471972,1750276240093,-460.0,0.00021917,6]
[366471973,1750276240103,-460.0,0.00021917,6]
[366471974,1750276240112,-460.0,0.00021917,6]
[366471975,1750276240122,-460.0,0.00021917,6]
[366471976,1750276240133,-460.0,0.00021917,6]
[366471977,1750276240142,-426.53720449,0.00021917,6]
[366471978,1750276240151,-400.0,0.00021917,6]
[366471979,1750276240160,-460.0,0.00021917,6]
[366471980,1750276240170,-488.87,0.00021917,6]
[366471981,1750276240180,-460.0,0.00021917,6]
[366471982,1750276240189,-460.0,0.00021917,6]
[366471984,1750276240198,-460.0,0.00021917,6]
[366471985,1750276240208,-460.0,0.00021917,6]
[366471987,1750276240217,-1585.52,0.00021917,6]
[366471988,1750276240227,-460.0,0.00021917,6]
[366471989,1750276240236,-460.0,0.00021917,6]
[366471990,1750276240245,-460.0,0.00021917,6]
[366471991,1750276240255,-460.0,0.00021917,6]
[366471992,1750276240266,-460.0,0.00021917,6]
[366471993,1750276240277,-460.0,0.00021917,6]
[366471994,1750276240286,-460.0,0.00021917,6]
[366471995,1750276240295,-402.46978806,0.00021917,6]
[366471996,1750276240304,-460.0,0.00021917,6]
[366471997,1750276240314,-377.15825682,0.00021917,6]
[366471998,1750276240323,-460.0,0.00021917,6]
[366471999,1750276240332,-460.0,0.00021917,6]
[366472000,1750276240341,-501.84986204,0.00021917,6]
[366472001,1750276240350,-460.0,0.00021917,6]
[366472002,1750276240359,-460.0,0.00021917,6]
[366472003,1750276240368,-904.19,0.00021917,6]
[366472004,1750276240377,-460.0,0.00021917,6]
[366472005,1750276240387,-429.03418222,0.00021917,6]
[366472006,1750276240396,-460.0,0.00021917,6]
[366472007,1750276240406,-886.21,0.00021917,6]
[366472008,1750276240417,-460.0,0.00021917,6]
[366472009,1750276240426,-460.0,0.00021917,6]
[366472010,1750276240436,-430.0,0.00021917,6]
[366472011,1750276240445,-460.0,0.00021917,6]
[366472012,1750276240455,-460.0,0.00021917,6]
[366472013,1750276240464,-400.0,0.00021917,6]
[366472014,1750276240473,-460.0,0.00021917,6]
[366472015,1750276240482,-460.0,0.00021917,6]
[366472016,1750276240491,-393.50761634,0.00021917,6]
[366472017,1750276240500,-460.0,0.00021917,6]
[366472018,1750276240509,-460.0,0.00021917,6]
[366472019,1750276240519,-460.0,0.00021917,6]
[366472020,1750276240528,-460.0,0.00021917,6]
[366472021,1750276240538,-460.0,0.00021917,6]
[366472022,1750276240547,-440.0,0.00021917,6]
[366472023,1750276240557,-460.0,0.00021917,6]
[366472024,1750276240567,-1038.82,0.00021917,6]
[366472025,1750276240577,-460.0,0.00021917,6]
[366472026,1750276240586,-430.0,0.00021917,6]
[366472027,1750276240717,-460.0,0.00021917,6]
[366472028,1750276240727,-460.0,0.00021917,6]
[366472029,1750276240738,-897.63,0.00021917,6]
[366472030,1750276240748,-460.0,0.00021917,6]
[366472031,1750276240759,-460.0,0.00021917,6]
[366472032,1750276240769,-440.0,0.00021917,6]
[366472033,1750276240780,-460.0,0.00021917,6]
[366472034,1750276240790,-460.0,0.00021917,6]
[366472035,1750276240799,-573.11054817,0.00021917,6]
[366472036,1750276240812,-460.0,0.00021917,6]
[366472037,1750276240821,-430.0,0.00021917,6]
[366472038,1750276240830,-460.0,0.00021917,6]
[366472039,1750276240840,-430.0,0.00021917,6]
[366472040,1750276240849,-460.0,0.00021917,6]
[366472041,1750276240859,-460.0,0.00021917,6]
[366472042,1750276240868,-430.0,0.00021917,6]
[366472043,1750276240877,-460.0,0.00021917,6]
[366472044,1750276240887,-460.0,0.00021917,6]
[366472045,1750276240897,-460.0,0.00021917,6]
[366472046,1750276240907,-460.0,0.00021917,6]
[366472047,1750276240916,-440.0,0.00021917,6]
[366472048,1750276240925,-424.06675205,0.00021917,6]
[366472049,1750276240935,-460.0,0.00021917,6]
[366472050,1750276240944,-460.0,0.00021917,6]
[366472051,1750276240953,-400.0,0.00021917,6]
[366472052,1750276240963,-200.0,0.00021917,6]
[366472053,1750276240972,-460.0,0.00021917,6]
[366472054,1750276240982,-460.0,0.00021917,6]
[366472055,1750276240991,-460.0,0.00021917,6]
[366472056,1750276241000,-4076.27,0.00021917,6]
[366472057,1750276241010,-460.0,0.00021917,6]
[366472058,1750276241019,-460.0,0.00021917,6]
[366472059,1750276241028,-460.0,0.00021917,6]
[366472060,1750276241038,-500.0,0.00021917,2]
[366472061,1750276241048,-460.0,0.00021917,6]
[366472062,1750276241058,-460.0,0.00021917,6]
[366472063,1750276241068,-572.57,0.00021917,6]
[366472064,1750276241078,-505.95,0.00021917,6]
[366472065,1750276241088,-460.0,0.00021917,6]
[366472066,1750276241097,-460.0,0.00021917,6]
[366472067,1750276241107,-460.0,0.00021917,6]
[366472068,1750276241117,-2858.76,0.00021917,6]
[366472069,1750276241126,-460.0,0.00021917,6]
[366472070,1750276241140,-376.21264922,0.00021917,6]
[366472071,1750276241149,-460.0,0.00021917,6]
[366472072,1750276241159,-460.0,0.00021917,6]
[366472073,1750276241168,-460.0,0.00021917,6]
[366472074,1750276241179,-430.0,0.00021917,6]
[366472075,1750276241188,-460.0,0.00021917,6]
[366472076,1750276241198,-2067.51,0.00021917,6]
[366472077,1750276241207,-460.0,0.00021917,6]
[366472078,1750276241217,-460.0,0.00021917,6]
[366472079,1750276241226,-460.0,0.00021917,6]
[366472080,1750276241235,-318.8894706,0.00021917,6]
[366472081,1750276241245,-460.0,0.00021917,6]
[366472082,1750276241255,-460.0,0.00021917,6]
[366472083,1750276241264,-460.0,0.00021917,6]
[366472084,1750276241274,-460.0,0.00021917,6]
[366472085,1750276241284,-460.0,0.00021917,6]
[366472086,1750276241294,-460.0,0.00021917,6]
[366472087,1750276241303,-460.0,0.00021917,6]
[366472088,1750276241313,-460.0,0.00021917,6]
[366472089,1750276241322,-460.0,0.00021917,6]
[366472090,1750276241331,-941.34,0.00021917,6]
[366472091,1750276241341,-460.0,0.00021917,6]
[366472092,1750276241350,-480.91743094,0.00021917,6]
[366472093,1750276241359,-520.96635681,0.00021917,6]
[366472094,1750276241368,-460.0,0.00021917,6]
[366472095,1750276241378,-460.0,0.00021917,6]
[366472096,1750276241389,-460.0,0.00021917,6]
[366472097,1750276241399,-460.0,0.00021917,6]
[366472098,1750276241408,-460.0,0.00021917,6]
[366472099,1750276241420,-410.59598332,0.00021917,6]
[366472100,1750276241429,-420.0,0.00021917,6]
[366472101,1750276241439,-460.0,0.00021917,6]
[366472102,1750276241448,-430.0,0.00021917,6]
[366472103,1750276241458,-460.0,0.00021917,6]
[366472104,1750276241468,-460.0,0.00021917,6]
[366472105,1750276241478,-460.0,0.00021917,6]
[366472106,1750276241487,-430.0,0.00021917,6]
[366472107,1750276241498,-1164.62054144,0.00021934,6]
[366472108,1750276241507,-475.92221856,0.00021973,2]
[366472109,1750276241516,-500.0,0.00021973,2]
[366472110,1750276241525,-500.0,0.00021973,2]
[366472111,1750276241535,-500.0,0.00021973,2]
[366472112,1750276241544,-500.0,0.00021973,2]
[366472113,1750276241555,-500.0,0.00021973,2]
[366472114,1750276241564,-500.0,0.00021973,2]
[366472115,1750276241574,-500.0,0.00021973,2]
[366472116,1750276241583,-482.226222,0.00021973,2]
[366472117,1750276241592,-500.0,0.00021973,2]
[366472118,1750276241602,-500.0,0.00021973,2]
[366472119,1750276241611,-595.24926172,0.00021973,2]
[366472120,1750276241620,-500.0,0.00021973,2]
[366472121,1750276241632,-500.0,0.00021973,2]
[366472122,1750276241641,-500.0,0.00021973,2]
[366472123,1750276241651,-505.65725866,0.00021973,2]
[366472124,1750276241660,-500.0,0.00021973,2]
[366472125,1750276241669,-500.0,0.00021973,2]
[366472126,1750276241678,-501.35445283,0.00021973,2]
[366472127,1750276241687,-505.38040956,0.00021973,2]
[366472128,1750276241697,-503.04139861,0.00021973,2]
[366472129,1750276241706,-501.07596043,0.00021973,2]
[366472130,1750276241715,-1037.42909163,0.0002199,2]
[366472131,1750276241724,-167.0,0.00022,2]
[366472132,1750276241733,-82816.0,0.00022,7]
[366472133,1750276241743,-213.43818883,0.00022,7]
[366472134,1750276241753,-160.0,0.00022,7]
[366472135,1750276241763,-178.0,0.00022,2]
[366472136,1750276241772,-420.0,0.0002204,2]
[366472137,1750276241781,-300.0,0.0002204,2]
[366472138,1750276241790,-420.0,0.00022042,2]
[366472139,1750276241800,-1164.62054144,0.00022107,6]
[366472140,1750276241809,-1680.0,0.00022146,2]
[366472141,1750276241819,-5000.0,0.00022157,2]
[366472142,1750276241829,-210.10470897,0.00022171,2]
[366472143,1750276241838,-500.0,0.00022173,2]
[366472144,1750276241847,-460.0,0.00022191,6]
[366472145,1750276241857,-340.0,0.00022191,6]
[366472146,1750276241866,-460.0,0.00022191,6]
[366472147,1750276241875,-563.72233479,0.00022191,6]
[366472148,1750276241886,-460.0,0.00022191,6]
[366472149,1750276241896,-460.0,0.00022191,6]
[366472150,1750276241905,-460.0,0.00022191,6]
[366472151,1750276241914,-412.78407016,0.00022191,6]
[366472152,1750276241924,-460.0,0.00022191,6]
[366472153,1750276241933,-460.0,0.00022191,6]
[366472154,1750276241942,-460.0,0.00022191,6]
[366472155,1750276241951,-460.0,0.00022191,6]
[366472156,1750276241960,-460.0,0.00022191,6]
[366472157,1750276241969,-460.0,0.00022191,6]
[366472158,1750276241980,-460.0,0.00022191,6]
[366472159,1750276241989,-441.0920171,0.00022191,6]
[366472160,1750276241999,-460.0,0.00022191,6]
[366472161,1750276242009,-500.0,0.00022191,6]
[366472162,1750276242018,-460.0,0.00022191,6]
[366472163,1750276242028,-460.0,0.00022191,6]
[366472164,1750276242037,-460.0,0.00022191,6]
[366472165,1750276242046,-460.0,0.00022191,6]
[366472166,1750276242056,-460.0,0.00022191,6]
[366472167,1750276242065,-460.0,0.00022191,6]
[366472168,1750276242075,-460.0,0.00022191,6]
[366472169,1750276242084,-460.0,0.00022191,6]
[366472170,1750276242093,-410.0,0.00022191,6]
[366472171,1750276242103,-460.0,0.00022191,6]
[366472172,1750276242112,-460.0,0.00022191,6]
[366472173,1750276242121,-546.26,0.00022191,6]
[366472174,1750276242131,-460.0,0.00022191,6]
[366472175,1750276242141,-398.20765129,0.00022191,6]
[366472176,1750276242151,-460.0,0.00022191,6]
[366472177,1750276242160,-460.0,0.00022191,6]
[366472178,1750276242171,-460.0,0.00022191,6]
[366472179,1750276242180,-468.05,0.00022191,6]
[366472180,1750276242189,-460.0,0.00022191,6]
[366472181,1750276242198,-460.0,0.00022191,6]
[366472182,1750276242207,-460.0,0.00022191,6]
[366472183,1750276242218,-460.0,0.00022191,6]
[366472184,1750276242227,-460.0,0.00022191,6]
[366472185,1750276242237,-460.0,0.00022191,6]
[366472186,1750276242247,-460.0,0.00022191,6]
[366472187,1750276242256,-440.0,0.00022191,6]
[366472188,1750276242265,-460.0,0.00022191,6]
[366472190,1750276242275,-460.0,0.00022191,6]
[366472192,1750276242285,-460.0,0.00022191,6]
[366472193,1750276242294,-460.0,0.00022191,6]
[366472194,1750276242304,-563.39586854,0.00022191,6]
[366472195,1750276242313,-460.0,0.00022191,6]
[366472196,1750276242323,-369.70368793,0.00022191,6]
[366472197,1750276242332,-460.0,0.00022191,6]
[366472199,1750276242342,-460.0,0.00022191,6]
[366472200,1750276242352,-460.0,0.00022191,6]
[366472201,1750276242362,-460.0,0.00022191,6]
[366472202,1750276242372,-460.0,0.00022191,6]
[366472203,1750276242382,-350.0,0.00022191,6]
[366472204,1750276242392,-460.0,0.00022191,6]
[366472205,1750276242402,-460.0,0.00022191,6]
[366472206,1750276242411,-425.52562561,0.00022191,6]
[366472207,1750276242423,-333.9552254,0.00022191,6]
[366472208,1750276242432,-580.59813726,0.00022191,6]
[366472209,1750276242442,-400.0,0.00022191,6]
[366472210,1750276242451,-460.0,0.00022191,6]
[366472211,1750276242462,-460.0,0.00022191,6]
[366472212,1750276242471,-292.83566639,0.00022191,6]
[366472213,1750276242480,-440.0,0.00022191,6]
[366472214,1750276242490,-460.0,0.00022191,6]
[366472215,1750276242500,-460.0,0.00022191,6]
[366472216,1750276242510,-574.68059444,0.00022191,6]
[366472217,1750276242519,-340.0,0.00022191,6]
[366472218,1750276242528,-410.0,0.00022191,6]
[366472220,1750276242537,-270.0,0.00022191,6]
[366472221,1750276242547,-2680.33,0.00022191,6]
[366472222,1750276242556,-460.0,0.00022191,6]
[366472223,1750276242565,-460.0,0.00022191,6]
[366472224,1750276242574,-460.0,0.00022191,6]
[366472225,1750276242583,-460.0,0.00022191,6]
[366472227,1750276242592,-440.0,0.00022191,6]
[366472228,1750276242601,-402.68959887,0.00022191,6]
[366472229,1750276242610,-460.0,0.00022191,6]
[366472230,1750276242620,-299.43366529,0.00022191,6]
[366472231,1750276242628,-460.0,0.00022191,6]
[366472232,1750276242640,-1716.89,0.00022191,6]
[366472233,1750276242649,-310.11571773,0.00022191,6]
[366472235,1750276242658,-745.9,0.00022191,6]
[366472236,1750276242668,-460.0,0.00022191,6]
[366472237,1750276242677,-330.0,0.00022191,6]
[366472238,1750276242687,-460.0,0.00022191,6]
[366472239,1750276242696,-460.0,0.00022191,6]
[366472240,1750276242706,-460.0,0.00022191,6]
[366472241,1750276242715,-460.0,0.00022191,6]
[366472242,1750276242724,-460.0,0.00022191,6]
[366472243,1750276242733,-460.0,0.00022191,6]
[366472244,1750276242743,-460.0,0.00022191,6]
[366472245,1750276242752,-420.0,0.00022191,6]
[366472246,1750276242762,-1572.4,0.00022191,6]
[366472247,1750276242771,-460.0,0.00022191,6]
[366472248,1750276242781,-460.0,0.00022191,6]
[366472249,1750276242790,-460.0,0.00022191,6]
[366472250,1750276242801,-440.0,0.00022191,6]
[366472251,1750276242811,-574.06,0.00022191,6]
[366472252,1750276242820,-460.0,0.00022191,6]
[366472253,1750276242829,-460.0,0.00022191,6]
[366472254,1750276242839,-420.0,0.00022191,6]
[366472255,1750276242848,-494.22176181,0.00022191,6]
[366472256,1750276242858,-511.68,0.00022191,6]
[366472257,1750276242867,-440.0,0.00022191,6]
[366472258,1750276242877,-460.0,0.00022191,6]
[366472259,1750276242889,-3015.37,0.00022191,6]
[366472260,1750276242898,-2284.2,0.00022191,6]
[366472261,1750276242907,-440.0,0.00022191,6]
[366472262,1750276242917,-1316.23,0.00022191,6]
[366472263,1750276242926,-460.0,0.00022191,6]
[366472264,1750276242935,-430.0,0.00022191,6]
[366472266,1750276242945,-460.0,0.00022191,6]
[366472267,1750276242954,-460.0,0.00022191,6]
[366472268,1750276242964,-460.0,0.00022191,6]
[366472269,1750276242973,-460.0,0.00022191,6]
[366472270,1750276242982,-460.0,0.00022191,6]
[366472271,1750276242992,-500.0,0.00022191,6]
[366472272,1750276243002,-460.0,0.00022191,6]
[366472273,1750276243011,-460.0,0.00022191,6]
[366472274,1750276243020,-460.0,0.00022191,6]
[366472275,1750276243030,-460.0,0.00022191,6]
[366472276,1750276243039,-460.0,0.00022191,6]
[366472277,1750276243049,-420.0,0.00022191,6]
[366472278,1750276243059,-460.0,0.00022191,6]
[366472279,1750276243068,-1203.33,0.00022191,6]
[366472280,1750276243079,-460.0,0.00022191,6]
[366472281,1750276243088,-481.69,0.00022191,6]
[366472282,1750276243097,-460.0,0.00022191,6]
[366472283,1750276243107,-298.12965728,0.00022191,6]